bitfinex-derivatives/quotes_ETHF0:USTF0_20250404
["timestamp","ask_amount","ask_price","bid_price","bid_amount"]
[1743775037486,0.00836167,1795.1,1795.0,2.57944]
[1743775037691,1.11474,1795.0,1794.9,44.0078]
[1743775037995,0.00836167,1795.1,1795.0,1.11474]
[1743775038194,1.67e-06,1795.1,1795.0,2.57944]
[1743775038697,1.67e-06,1795.1,1795.0,7.69944]
[1743775038904,1.5175,1795.6,1795.0,47.3847]
[1743775039201,1.11464,1795.2,1795.0,51.7072]
[1743775039392,2.78612,1795.5,1795.0,45.4725]
[1743775039699,4.30349,1795.6,1795.0,40.8]
[1743775039700,4.32247,1795.1,1795.0,40.8]
[1743775039905,1.11482,1794.9,1794.8,3.2078]
[1743775040095,1.11482,1794.9,1794.7,0.00836167]
[1743775040096,1.11486,1794.8,1794.7,0.00836167]
[1743775040594,3.61486,1794.8,1794.7,0.00836167]
[1743775040799,4.17246,1794.8,1794.7,1.67e-06]
[1743775040994,5.70706,1794.8,1794.7,1.67e-06]
[1743775041800,1.11513,1794.4,1794.1,3.2078]
[1743775041997,2.7875,1794.6,1793.9,3.2078]
[1743775042196,2.78762,1794.5,1794.0,41.91533]
[1743775042397,1.1153,1794.1,1794.0,40.8]
[1743775042906,2.78854,1794.0,1793.4,5.966]
[1743775043099,1.11586,1793.2,1793.1,5.966]
[1743775043299,8.3558,1793.6,1793.5,0.00836167]
[1743775043496,9.47141,1793.6,1793.5,1.67e-06]
[1743775043798,11.97141,1793.6,1793.5,1.67e-06]
[1743775044100,1.1161,1792.8,1792.7,1.4453]
[1743775044307,1.11629,1792.5,1792.4,5.966]
[1743775044499,3.2078,1793.0,1792.2,5.966]
[1743775044699,3.2078,1793.0,1792.2,9.1738]
[1743775044902,4.66212138,1793.8,1792.7,3.2078]
[1743775045104,2.78887,1793.7,1793.0,1.11596]
[1743775045302,3.2078,1793.6,1793.2,1.11584]
[1743775045499,0.00836167,1793.4,1793.1,3.21616167]
[1743775045707,1.12412167,1793.4,1793.1,5.85793167]
[1743775045903,1.2778,1793.9,1793.3,3.2078]
[1743775046105,1.2778,1793.9,1793.2,1.5259]
[1743775046106,1.11579,1793.3,1793.2,1.5259]
[1743775046410,1.11586,1793.2,1793.1,0.00836167]
[1743775046812,3.61586,1793.2,1793.1,0.00836167]
[1743775047002,5.99659,1793.8,1793.1,0.00836167]
[1743775047202,0.00836167,1793.3,1793.2,3.2078]
[1743775047508,0.00836167,1793.3,1793.2,1.11586]
[1743775047804,0.00836167,1793.3,1793.2,10.28966]
[1743775048004,3.9194,1794.0,1793.2,16.8138]
[1743775048210,3.2078,1794.0,1793.7,1.11551]
[1743775048410,1.11554,1793.7,1793.6,44.0078]
[1743775048602,1.11554,1793.7,1793.6,40.8]
[1743775049307,1.11532,1794.1,1793.9,1.1154]
[1743775049505,3.34543,1794.4,1793.6,44.0078]
[1743775049506,0.5576,1794.4,1793.8,3.2078]
[1743775049702,1.11542,1793.9,1793.8,3.2078]
[1743775049902,1.11554,1793.7,1793.6,40.8]
[1743775051003,1.11554,1793.7,1793.6,44.0078]
[1743775051201,5.99608,1794.1,1793.6,41.91559]
[1743775051413,1.11554,1793.7,1793.6,40.8]
[1743775051914,5.99608,1794.1,1793.6,40.8]
[1743775052113,1.11545,1793.9,1793.6,44.0078]
[1743775052306,1.11546,1793.9,1793.6,44.0078]
[1743775052507,1.11548,1793.8,1793.7,1.11552]
[1743775052809,1.1153,1794.1,1793.6,51.92179]
[1743775053006,0.00836167,1794.2,1794.1,1.1153]
[1743775053315,0.00836167,1794.2,1794.1,4.3231]
[1743775053512,0.00836167,1794.2,1793.9,4.3232]
[1743775053708,0.00836167,1794.2,1794.1,4.3231]
[1743775053917,2.78704,1794.9,1794.1,3.2078]
[1743775054212,1.11554,1793.7,1793.6,45.1234]
[1743775054408,1.11554,1793.7,1793.6,40.8]
[1743775054607,2.78808,1794.3,1793.7,1.11551]
[1743775054806,2.78841,1794.0,1793.6,45.12337]
[1743775055011,5.99592,1794.2,1793.7,1.11554]
[1743775055205,1.11542,1793.9,1793.8,0.00836167]
[1743775055715,1.12359167,1794.2,1794.0,1.11531]
[1743775055915,0.00836167,1794.2,1794.1,1.1153]
[1743775056412,1.11512,1794.4,1794.2,1.11518]
[1743775056608,1.11516,1794.4,1794.1,1.11525]
[1743775056808,2.78733,1794.7,1794.3,1.11515]
[1743775057009,3.2078,1794.8,1794.3,3.2078]
[1743775057202,1.11482,1794.9,1794.6,3.2078]
[1743775057405,5.99451,1795.1,1794.6,4.32277]
[1743775057609,1.11498,1794.6,1794.5,5.157]
[1743775057808,2.7876,1794.6,1794.1,8.3638]
[1743775058012,5.99524,1794.7,1794.2,1.11523]
[1743775058310,2.78685,1795.0,1794.5,1.11501]
[1743775058515,1.11508,1794.5,1794.3,3.2078]
[1743775058714,0.5576,1795.2,1794.3,3.2078]
[1743775058916,3.56996871,1795.6,1795.1,3.2078]
[1743775059114,1.11455,1795.3,1795.1,4.32243]
[1743775059410,3.2078,1796.0,1795.2,40.8]
[1743775059615,3.7654,1796.0,1795.4,3.2078]
[1743775060010,2.78545,1795.9,1795.3,5.176]
[1743775060213,1.11434,1795.7,1795.5,1.1144]
[1743775060509,6.55075,1796.0,1795.4,3.2078]
[1743775060705,2.78525,1796.1,1795.4,3.2078]
[1743775060909,1.11432,1795.7,1795.5,1.1144]
[1743775061306,1.1143,1795.8,1795.4,3.2078]
[1743775061509,1.11433,1795.7,1795.5,1.1144]
[1743775061712,5.99315,1796.0,1795.4,3.2078]
[1743775061905,1.11432,1795.7,1795.5,1.11438]
[1743775062108,1.11432,1795.7,1795.6,1.4801]
[1743775062314,1.5295,1795.9,1795.6,1.4801]
[1743775062515,1.11416,1796.0,1795.8,3.2078]
[1743775062709,37.91166,1796.5,1795.9,3.2078]
[1743775062710,0.5576,1796.5,1795.9,3.2078]
[1743775062916,5.99227,1796.6,1796.1,3.2078]
[1743775062917,1.11396,1796.3,1796.1,3.2078]
[1743775063116,10.73387,1796.9,1796.1,3.2078]
[1743775063117,3.2078,1797.0,1796.5,1.1138]
[1743775063315,1.11345,1797.1,1796.8,4.32139]
[1743775063613,2.78313,1797.4,1796.7,3.2078]
[1743775063818,1.5295,1797.4,1796.8,1.4801]
[1743775064011,1.5295,1797.4,1796.9,5.177]
[1743775064213,1.5295,1797.4,1797.0,1.4152]
[1743775064412,1.11333,1797.3,1797.0,2.52866]
[1743775064618,1.11343,1797.1,1797.0,1.4152]
[1743775064815,1.11343,1797.1,1797.0,42.2152]
[1743775065317,1.1134,1797.2,1797.0,42.2152]
[1743775065522,1.11343,1797.1,1797.0,42.2152]
[1743775065821,4.53250001,1797.9,1797.0,45.423]
[1743775066019,3.2078,1797.6,1797.0,45.423]
[1743775066321,1.11328,1797.4,1797.0,46.53646]
[1743775066521,1.5165,1797.5,1797.0,45.423]
[1743775067115,1.11343,1797.1,1797.0,45.423]
[1743775067430,1.1135,1797.0,1796.9,0.00836167]
[1743775068119,1.5052,1797.2,1796.9,3.21616167]
[1743775068320,3.2078,1797.5,1797.0,1.3988]
[1743775068321,1.11347,1797.1,1797.0,1.3988]
[1743775068818,1.1135,1797.0,1796.9,0.00836167]
[1743775069021,2.6187,1797.0,1796.9,0.00836167]
[1743775070419,5.1187,1797.0,1796.9,1.67e-06]
[1743775071622,2.6187,1797.0,1796.9,1.67e-06]
[1743775072009,1.1135,1797.0,1796.9,1.67e-06]
[1743775072519,4.3213,1797.0,1796.9,1.67e-06]
[1743775072709,2.5384,1797.0,1796.9,1.67e-06]
[1743775073112,0.00836,1797.1,1796.9,1.67e-06]
[1743775073309,1.1135,1797.0,1796.9,1.49390167]
[1743775073512,2.5019,1797.0,1796.9,1.67e-06]
[1743775073710,8.2097,1797.0,1796.9,1.67e-06]
[1743775074719,13.3117,1797.0,1796.9,1.67e-06]
[1743775075627,10.8117,1797.0,1796.9,1.67e-06]
[1743775075820,13.3117,1797.0,1796.9,1.67e-06]
[1743775076025,13.86850001,1797.0,1796.9,1.67e-06]
[1743775076319,0.00836,1797.1,1796.9,1.67e-06]
[1743775076518,1.12184,1797.1,1796.9,3.20780167]
[1743775076823,1.12179,1797.1,1797.0,1.4773]
[1743775077014,1.12179,1797.1,1797.0,42.2773]
[1743775077425,0.00836,1797.1,1797.0,42.2773]
[1743775077719,0.00836,1797.1,1797.0,48.4968]
[1743775077916,0.00836,1797.1,1797.0,50.9968]
[1743775078316,1.12179,1797.1,1797.0,42.2773]
[1743775078512,0.00836,1797.1,1797.0,42.2773]
[1743775078718,0.00836,1797.1,1797.0,44.7773]
[1743775078921,4.29744,1797.6,1797.0,44.7773]
[1743775079126,1.5145,1797.6,1797.1,3.2078]
[1743775079328,1.5145,1797.6,1797.2,1.4339]
[1743775079527,1.5145,1797.6,1797.2,2.54724]
[1743775079821,1.1132,1797.5,1797.4,1.11323]
[1743775080023,1.11308,1797.7,1797.6,1.11312]
[1743775080325,1.11308,1797.7,1797.5,1.4339]
[1743775080514,1.11312,1797.6,1797.5,1.4339]
[1743775080719,1.4376,1797.8,1797.5,1.4339]
[1743775080921,2.55066,1797.8,1797.7,1.11306]
[1743775081121,1.11298,1797.9,1797.6,3.2078]
[1743775081427,1.4376,1798.1,1797.7,1.4339]
[1743775081722,3.2078,1798.2,1797.8,2.78251]
[1743775081924,5.98908,1798.6,1797.9,7.42403]
[1743775082224,1.11264,1798.4,1798.0,5.109]
[1743775082430,4.6454,1798.7,1798.1,45.4362]
[1743775082722,2.78127,1798.6,1798.1,45.4362]
[1743775082921,1.11275,1798.2,1798.1,42.2284]
[1743775083221,1.11275,1798.2,1797.8,5.12436167]
[1743775083222,1.11294,1797.9,1797.8,0.00836167]
[1743775083423,1.11312,1797.6,1797.5,1.4284]
[1743775083623,1.11325,1797.4,1797.3,3.2078]
[1743775083925,1.11337,1797.2,1797.1,4.6362]
[1743775084221,1.11337,1797.2,1796.8,5.966]
[1743775084222,3.2078,1797.2,1796.8,44.0078]
[1743775084431,1.11352,1797.0,1796.8,1.1136]
[1743775084628,1.11362,1796.8,1796.7,1.4284]
[1743775084925,1.11362,1796.8,1796.7,42.2284]
[1743775085114,1.11362,1796.8,1796.6,0.00836167]
[1743775085115,1.11368,1796.7,1796.6,0.00836167]
[1743775085716,1.4143,1796.8,1796.6,40.80836167]
[1743775085918,0.00836167,1796.9,1796.6,40.80836167]
[1743775086121,0.00836167,1796.9,1796.8,1.11362]
[1743775086319,0.00836167,1796.9,1796.8,4.32142]
[1743775087023,0.55680001,1797.8,1797.0,2.78362]
[1743775087224,4.197,1797.7,1797.1,6.6672]
[1743775087419,4.197,1797.7,1797.2,1.11336]
[1743775087621,3.54807,1798.1,1797.6,3.2078]
[1743775087831,1.4143,1797.9,1797.6,3.2078]
[1743775088024,2.52728,1797.9,1797.7,1.5172]
[1743775088221,5.71680001,1798.4,1797.8,3.2078]
[1743775088420,5.71680001,1798.4,1797.6,5.16736167]
[1743775088421,1.3989,1798.2,1798.0,4.32065]
[1743775088628,1.11303,1797.8,1797.6,3.21616167]
[1743775088824,1.3989,1798.2,1797.7,1.4159]
[1743775089028,1.11294,1797.9,1797.8,1.11297]
[1743775089230,1.3989,1798.2,1797.8,1.11297]
[1743775089426,1.11294,1797.9,1797.8,0.71081208]
[1743775089941,4.18081,1798.2,1797.8,41.51081208]
[1743775090129,1.11294,1797.9,1797.8,41.51081208]
[1743775090427,1.11294,1797.9,1797.8,40.8]
[1743775090832,1.3989,1798.0,1797.8,40.8]
[1743775091028,2.51178,1798.0,1797.9,0.71151959]
[1743775091526,1.3989,1798.0,1797.9,1.82445959]
[1743775091726,1.11288,1798.0,1797.9,0.71151959]
[1743775092333,2.64926,1798.1,1798.0,1.11288]
[1743775092538,2.64926,1798.1,1798.0,2.15101959]
[1743775092836,2.64926,1798.1,1798.0,0.71151959]
[1743775093035,2.64921,1798.1,1798.0,0.71151959]
[1743775093230,1.5364,1798.1,1798.0,0.71151959]
[1743775093432,1.32270001,1798.7,1798.0,3.91931959]
[1743775093630,1.5364,1798.5,1798.2,3.2078]
[1743775093832,3.2078,1799.0,1798.4,3.2078]
[1743775094033,1.11245,1798.7,1798.5,1.11254]
[1743775094233,1.11245,1798.7,1798.5,2.60944]
[1743775094539,1.11244,1798.7,1798.6,0.71151959]
[1743775094834,1.5364,1798.9,1798.7,1.11244]
[1743775095034,2.64872,1798.9,1798.8,3.91931959]
[1743775095535,2.64872,1798.9,1798.8,0.71151959]
[1743775095732,2.64872,1798.9,1798.8,41.51151959]
[1743775095944,3.9031,1799.3,1798.8,44.71931959]
[1743775096232,1.11232,1798.9,1798.8,41.51151959]
[1743775096431,4.32012,1798.9,1798.8,40.8]
[1743775096737,4.32012,1798.9,1798.4,14.31116167]
[1743775096738,1.11257,1798.5,1798.4,0.00836167]
[1743775097230,4.32037,1798.5,1798.4,0.00836167]
[1743775097446,8.27497,1798.5,1798.4,1.67e-06]
[1743775097833,1.11257,1798.5,1798.4,1.67e-06]
[1743775098026,5.06717,1798.5,1798.4,1.67e-06]
[1743775098833,2.56717,1798.5,1798.4,1.67e-06]
[1743775099428,2.56717,1798.5,1798.4,40.80000167]
[1743775099627,1.11257,1798.5,1798.4,41.50980434]
[1743775099833,0.00828022,1798.6,1798.4,41.50980434]
[1743775100136,1.11257,1798.5,1798.4,41.50980434]
[1743775100336,1.11257,1798.5,1798.4,40.80000167]
[1743775100337,5.75707,1798.5,1798.4,40.80000167]
[1743775100531,9.92593,1798.5,1797.9,5.966]
[1743775100728,9.92593,1798.5,1797.8,5.139]
[1743775100729,3.2078,1798.1,1797.8,5.139]
[1743775100934,1.1129,1798.0,1797.8,12.21797]
[1743775101136,1.11234,1798.9,1798.3,5.966]
[1743775101331,1.4367,1799.1,1798.5,3.2078]
[1743775101536,1.11244,1798.7,1798.6,0.70906452]
[1743775101740,4.32024,1798.7,1798.6,0.70906452]
[1743775102031,1.11266,1798.4,1798.1,4.6977]
[1743775102232,1.11266,1798.4,1798.2,2.60263]
[1743775102437,3.2078,1798.6,1798.3,1.82219895]
[1743775102635,1.11263,1798.4,1798.3,0.70953895]
[1743775103335,6.82043,1798.4,1798.3,0.70953895]
[1743775103636,1.11275,1798.2,1798.1,0.00833773]
[1743775103830,4.32055,1798.2,1798.1,0.00833773]
[1743775104140,1.4889,1798.3,1798.2,1.11275]
[1743775104430,5.98884,1798.8,1798.1,3.21613773]
[1743775104431,3.2078,1798.8,1798.1,3.21613773]
[1743775104636,3.2078,1798.4,1798.1,0.00833773]
[1743775104826,1.11275,1798.2,1798.1,0.00833773]
[1743775105032,2.60163,1798.3,1798.1,40.80833773]
[1743775105236,1.11258,1798.5,1798.1,45.55053773]
[1743775105439,1.11262,1798.5,1798.3,1.11268]
[1743775105737,3.2078,1798.8,1798.2,1.5344]
[1743775106039,1.4889,1798.7,1798.3,3.2078]
[1743775106332,3.9324,1799.1,1798.3,5.966]
[1743775106532,1.11247,1798.7,1798.5,1.11257]
[1743775106839,1.11235,1798.9,1798.7,1.11242]
[1743775107337,1.1124,1798.8,1798.7,1.11244]
[1743775107539,1.5054,1799.0,1798.6,1.4096]
[1743775107732,1.5054,1799.0,1798.6,10.5834]
[1743775107931,0.55680001,1799.3,1798.8,3.2078]
[1743775108127,1.11205,1799.4,1799.2,3.2078]
[1743775108327,1.5054,1799.5,1799.4,1.11201]
[1743775108532,2.61735,1799.5,1799.2,3.2078]
[1743775108735,2.61735,1799.5,1799.4,40.8]
[1743775108926,1.66793,1799.6,1799.4,40.8]
[1743775109128,2.0614,1799.6,1799.4,40.8]
[1743775109333,1.11173,1799.9,1799.7,1.11179]
[1743775109632,2.5609,1800.1,1799.8,3.2078]
[1743775109933,1.11141,1800.4,1800.1,1.11155]
[1743775110138,3.2078,1800.8,1800.2,1.11148]
[1743775110337,1.11137,1800.5,1800.2,1.5074]
[1743775110529,2.56069,1800.4,1800.3,40.8]
[1743775110735,5.76849,1800.4,1800.3,40.8]
[1743775110933,8.26849,1800.4,1800.3,40.8]
[1743775111134,1.11145,1800.3,1800.2,0.00833773]
[1743775111336,2.56075,1800.3,1800.2,0.00833773]
[1743775111539,5.06075,1800.3,1800.2,40.80833773]
[1743775111928,5.06075,1800.3,1800.2,0.00833773]
[1743775112934,3.9493,1800.3,1800.2,0.00833773]
[1743775113139,8.4518,1800.6,1800.2,0.00833773]
[1743775113140,1.11135,1800.5,1800.2,0.00833773]
[1743775113441,1.11145,1800.3,1800.2,0.00833773]
[1743775113645,1.4776,1800.5,1800.2,0.00833773]
[1743775113837,1.11143,1800.4,1800.2,1.53293773]
[1743775114231,0.556,1800.8,1800.3,3.2078]
[1743775114436,2.0336,1800.8,1800.4,1.5246]
[1743775114635,1.1113,1800.6,1800.4,1.5246]
[1743775114836,0.556,1801.1,1800.5,51.999]
[1743775115038,3.2078,1802.8,1801.2,9.1738]
[1743775115341,3.2078,1803.0,1802.4,3.2078]
[1743775115642,1.1098,1802.8,1802.6,3.2078]
[1743775115838,1.10986,1802.8,1802.6,3.2078]
[1743775116036,3.763,1803.3,1802.7,5.365]
[1743775116246,3.2078,1803.3,1802.8,3.2078]
[1743775116434,27.35910288,1803.7,1803.0,3.2078]
[1743775116636,27.35910288,1803.7,1802.9,7.4719]
[1743775116637,1.10943,1803.4,1803.3,3.2078]
[1743775116933,3.2078,1803.4,1802.9,3.2078]
[1743775117136,3.2078,1803.5,1802.9,3.2078]
[1743775117336,26.24983288,1803.7,1803.0,4.7137]
[1743775117541,26.24983288,1803.7,1803.5,4.31715]
[1743775117733,26.24983288,1803.7,1803.6,1.5059]
[1743775118439,26.24983288,1803.7,1803.6,5.11521]
[1743775118642,21.87327789,1803.7,1803.6,45.91521]
[1743775118847,22.98252789,1803.7,1803.6,42.3059]
[1743775119142,1.10925,1803.7,1803.6,42.3059]
[1743775119344,1.10925,1803.7,1803.6,1.5059]
[1743775119948,1.10943,1803.4,1803.3,3.2078]
[1743775120540,3.2078,1804.1,1803.3,3.2078]
[1743775120740,0.5552,1804.0,1803.5,3.2078]
[1743775120941,1.10925,1803.7,1803.6,1.3888]
[1743775121651,2.77341,1803.6,1803.1,3.2078]
[1743775121944,1.10956,1803.2,1803.1,3.2078]
[1743775122144,1.10962,1803.1,1803.0,1.4851]
[1743775122341,1.10968,1803.0,1802.9,3.2078]
[1743775122945,2.5,1803.0,1802.6,1.4851]
[1743775123137,1.10986,1802.7,1802.6,1.4851]
[1743775123341,3.21613773,1803.1,1802.6,10.3049]
[1743775123544,0.00833773,1803.1,1803.0,3.2078]
[1743775123943,1.11795773,1803.1,1803.0,3.2078]
[1743775124248,0.00833773,1803.1,1803.0,3.2078]
[1743775124448,1.11795773,1803.1,1803.0,4.6929]
[1743775125247,1.10945,1803.4,1803.0,18.7729]
[1743775125451,2.77291,1803.9,1803.0,18.7729]
[1743775125452,1.10953,1803.3,1803.2,3.2078]
[1743775125643,2.77335,1803.6,1803.0,16.2729]
[1743775125948,2.77374,1803.3,1803.0,4.6929]
[1743775126255,1.5346,1803.6,1803.2,3.2078]
[1743775126445,1.10943,1803.4,1803.3,1.4861]
[1743775127440,1.10962,1803.1,1803.0,8.8168]
[1743775127751,1.10953,1803.3,1803.1,1.10961]
[1743775128049,5.98069,1803.9,1803.3,1.10946]
[1743775128247,1.10949,1803.3,1803.2,3.2078]
[1743775128646,1.10949,1803.3,1803.2,1.4561]
[1743775129246,2.77363,1803.4,1803.0,3.2078]
[1743775129538,1.10968,1803.0,1802.9,0.11523773]
[1743775129739,8.40925,1803.7,1802.9,0.11523773]
[1743775129740,5.98105,1803.7,1802.9,1.57133773]
[1743775130042,1.10958,1803.2,1803.0,3.2078]
[1743775130242,4.31215,1803.6,1803.1,1.4561]
[1743775130243,1.10955,1803.3,1803.1,1.4561]
[1743775130542,4.31209,1803.6,1803.1,1.4561]
[1743775130743,1.10956,1803.2,1803.1,1.4561]
[1743775131344,1.10962,1803.1,1803.0,3.2078]
[1743775131545,1.10968,1803.0,1802.9,2.33383773]
[1743775131745,1.10968,1803.0,1802.9,5.54163773]
[1743775132047,1.10968,1803.0,1802.9,2.33383773]
[1743775132650,1.10968,1803.0,1802.9,2.22693773]
[1743775133247,1.10968,1803.0,1802.9,3.33667773]
[1743775133450,5.98135,1803.5,1802.9,3.33667773]
[1743775133451,3.2078,1803.5,1802.9,4.72693773]
[1743775133652,3.2078,1803.5,1803.1,3.2078]
[1743775133855,1.10949,1803.3,1803.2,1.4193]
[1743775134247,2.77382,1803.3,1802.9,9.18213773]
[1743775134452,2.77359,1803.4,1803.0,1.4193]
[1743775134657,1.10962,1803.1,1803.0,1.4193]
[1743775135348,1.4058,1803.3,1803.0,1.4193]
[1743775135657,1.10955,1803.3,1803.0,1.4193]
[1743775135849,1.4058,1803.4,1803.2,1.10956]
[1743775136048,5.588,1803.6,1803.3,1.10949]
[1743775136250,1.10937,1803.5,1803.4,1.4193]
[1743775137147,1.10956,1803.2,1803.1,0.1069]
[1743775137852,2.64376,1803.2,1803.1,0.1069]
[1743775138245,2.64376,1803.2,1803.1,1.5087]
[1743775138452,2.64376,1803.2,1803.1,0.1069]
[1743775139147,1.10956,1803.2,1803.1,0.1069]
[1743775139355,1.10956,1803.2,1803.1,1.5087]
[1743775139556,1.10955,1803.3,1803.1,0.1069]
[1743775139853,2.77224,1804.3,1803.5,2.77334]
[1743775140156,4.15935,1804.4,1803.6,8.7538]
[1743775140353,1.10913,1803.9,1803.8,3.2078]
[1743775141056,4.15968,1804.2,1803.8,4.31694]
[1743775141253,4.1719,1805.0,1804.0,3.2078]
[1743775141457,1.10868,1804.7,1804.5,1.10874]
[1743775141751,0.5544,1805.1,1804.6,3.2078]
[1743775141953,1.3873,1805.4,1804.8,3.2078]
[1743775142149,1.10835,1805.2,1804.9,1.4122]
[1743775142346,0.5544,1805.6,1805.0,40.8]
[1743775142551,1.10838,1805.2,1805.0,44.0078]
[1743775142754,3.2078,1805.8,1805.1,1.4786]
[1743775142956,3.2078,1806.0,1805.5,3.2078]
[1743775143255,5.97767,1805.9,1805.5,3.2078]
[1743775143459,2.77036,1805.5,1804.9,3.2078]
[1743775143760,1.4928,1805.4,1804.7,3.216113]
[1743775143956,0.5544,1806.0,1805.3,3.2078]
[1743775144149,1.4928,1806.0,1805.8,3.2078]
[1743775144351,2.76836,1806.9,1805.9,41.49605157]
[1743775144558,0.5544,1806.9,1806.2,3.2078]
[1743775144755,7.46897,1806.8,1806.2,0.008313]
[1743775144947,1.4928,1806.8,1806.2,0.008313]
[1743775145147,1.4787,1807.1,1806.4,3.2078]
[1743775145357,34.94,1807.7,1806.3,1.10763]
[1743775145358,3.2078,1808.1,1806.9,3.2078]
[1743775145558,3.2078,1809.0,1808.0,3.2078]
[1743775145756,1.10648,1808.3,1807.8,3.2078]
[1743775145960,1.10648,1808.3,1807.7,5.945]
[1743775145961,0.11060723,1808.2,1808.0,3.2078]
[1743775146164,0.11060723,1808.2,1807.9,9.1578]
[1743775146454,0.11060723,1808.2,1807.9,9.166113]
[1743775146963,1.10661,1808.0,1807.9,3e-06]
[1743775147160,0.1188365,1808.2,1807.9,3e-06]
[1743775147351,3.2078,1808.7,1807.9,2.500003]
[1743775147552,3.2078,1809.4,1808.9,1.10604]
[1743775147755,1.4145,1809.7,1808.8,3.2078]
[1743775147756,3.2078,1809.5,1808.8,3.2078]
[1743775147958,3.2078,1808.9,1808.0,3.2078]
[1743775148263,3.2078,1808.6,1807.8,3.2078]
[1743775148455,2.76592,1808.4,1807.8,3.2078]
[1743775148651,3.2078,1808.9,1808.2,3.2078]
[1743775148855,3.2078,1809.4,1808.4,3.2078]
[1743775149060,3.2078,1808.6,1808.1,6.305]
[1743775149256,4.3141,1808.5,1808.4,0.00828912]
[1743775149462,4.3141,1808.5,1808.4,9.12e-06]
[1743775149664,0.5536,1808.4,1807.6,3.2078]
[1743775149863,0.5536,1808.4,1807.1,1.869]
[1743775149864,3.2078,1807.8,1807.4,3.2078]
[1743775150066,3.2078,1807.9,1807.2,3.2078]
[1743775150264,3.2078,1807.8,1807.2,3.2078]
[1743775150457,1.4533,1808.0,1807.3,3.2078]
[1743775150658,1.10676,1807.8,1807.4,6.382]
[1743775150858,1.10685,1807.6,1807.5,0.00828912]
[1743775151160,0.0082095,1807.8,1807.5,0.00828912]
[1743775151363,1.10685,1807.6,1807.5,0.00828912]
[1743775151956,5.11705,1807.6,1807.5,9.12e-06]
[1743775152562,2.76733,1807.5,1806.6,3.2078]
[1743775152763,4.718,1807.4,1806.8,3.2078]
[1743775153164,3.2078,1807.2,1806.8,3.2078]
[1743775153469,1.10731,1806.9,1806.5,1.10751]
[1743775153658,3.2078,1807.0,1806.5,1.10752]
[1743775153862,1.10732,1806.9,1806.8,0.00828912]
[1743775154071,1.11560912,1806.9,1806.8,0.00828912]
[1743775154480,6.82340912,1806.9,1806.8,9.12e-06]
[1743775154767,7.37700912,1806.9,1806.8,9.12e-06]
[1743775154975,1.10784,1806.0,1805.9,40.8]
[1743775155659,1.4267,1806.4,1805.9,40.8]
[1743775155860,1.4267,1806.4,1805.9,44.0078]
[1743775156157,1.10777,1806.1,1806.0,0.00828912]
[1743775156360,1.10777,1806.1,1806.0,0.11903109]
[1743775156562,5.03447,1806.1,1806.0,0.11903109]
[1743775156764,6.69625,1806.1,1805.3,3.2078]
[1743775156966,1.1083,1805.3,1805.1,3.2078]
[1743775157168,1.10831,1805.3,1805.1,3.2078]
[1743775157464,1.10831,1805.3,1805.2,40.8]
[1743775158173,4.16271,1805.3,1805.2,40.8]
[1743775158371,7.37051,1805.3,1805.2,40.8]
[1743775158574,8.82661,1805.3,1805.2,40.8]
[1743775158871,5.77221,1805.3,1805.2,40.8]
[1743775159066,2.56441,1805.3,1805.2,40.8]
[1743775159570,0.00828912,1805.4,1805.2,40.8]
[1743775159772,0.00828912,1805.4,1805.3,1.10827]
[1743775159968,0.00828912,1805.4,1805.3,1.4852]
[1743775160168,1.10827,1805.3,1805.2,40.8]
[1743775160364,4.31607,1805.3,1805.2,40.8]
[1743775160566,8.27217,1805.3,1805.2,40.8]
[1743775160768,1.4561,1805.3,1805.2,40.8]
[1743775160972,0.00828912,1805.4,1805.2,40.8]
[1743775161171,1.10827,1805.3,1805.2,40.8]
[1743775161676,1.11653912,1805.4,1805.2,40.8]
[1743775161881,0.00828912,1805.4,1805.3,1.10827]
[1743775162067,0.00828912,1805.4,1805.3,2.60137]
[1743775162376,1.10827,1805.3,1805.2,40.8]
[1743775162770,2.64137,1805.3,1805.2,40.8]
[1743775163367,5.14137,1805.3,1805.2,40.8]
[1743775163578,1.10833,1805.2,1805.1,9.12e-06]
[1743775164174,1.10833,1805.2,1805.1,40.80000912]
[1743775164879,2.77113,1805.0,1804.4,3.2078]
[1743775165079,1.10876,1804.5,1804.4,3.2078]
[1743775165280,5.97893,1805.0,1804.4,3.2078]
[1743775165478,1.10882,1804.4,1804.3,1.5175]
[1743775165675,7.38498,1804.8,1804.1,9.1738]
[1743775165984,1.10888,1804.3,1804.2,40.8]
[1743775166781,0.00831278,1804.6,1804.2,40.8]
[1743775166981,1.10882,1804.4,1804.3,3.2078]
[1743775167180,1.10888,1804.3,1804.2,40.8]
[1743775167572,3.60888,1804.3,1804.2,40.8]
[1743775167776,3.60888,1804.3,1803.9,2.7968]
[1743775167777,1.10931,1803.6,1803.5,3.2078]
[1743775168084,2.77259,1804.1,1803.6,1.10929]
[1743775168377,1.1092,1803.8,1803.7,40.8]
[1743775168579,1.1092,1803.8,1803.7,44.0078]
[1743775168786,1.1092,1803.8,1803.7,40.8]
[1743775168978,3.6092,1803.8,1803.7,40.8]
[1743775169177,1.1092,1803.8,1803.7,40.8]
[1743775169576,1.4332,1803.9,1803.7,44.0078]
[1743775169778,0.5544,1804.3,1803.7,47.9878]
[1743775169977,1.109,1804.1,1804.0,3.2078]
[1743775170385,1.4789,1804.5,1804.0,3.2078]
[1743775170579,2.58766,1804.5,1804.4,3.2078]
[1743775170780,3.32492,1805.4,1804.5,1.10876]
[1743775170981,0.5544,1805.5,1805.1,3.2078]
[1743775171281,1.10845,1805.0,1804.9,3.2078]